[Event "Titled Tuesday Blitz March 01 Late 2022"]
[White "Kulon, Klaudia"]
[Black "Muradli, Mahammad"]
[WhiteFideId "1131044"]
[BlackFideId "13409301"]
[WhiteElo "2281"]
[BlackElo "2645"]
[Result "0-1"]
[Round "03"]
[TimeControl "180+1"]
[Date "2022.03.01"]
[WhiteClock "0:01:23"]
[BlackClock "0:02:17"]

1. c4 {[%clk 0:03:00]}  g6 {[%clk 0:02:58]} 2. Nc3 {[%clk 0:03:00]}  Bg7 {[%clk 0:02:58]} 3. g3 {[%clk 0:03:00]}  c5 {[%clk 0:02:58]} 4. Bg2 {[%clk 0:03:00]}  Nc6 {[%clk 0:02:59]} 5. e3 {[%clk 0:03:00]}  b6 {[%clk 0:02:54]} 6. Nge2 {[%clk 0:03:01]}  Bb7 {[%clk 0:02:54]} 7. d4 {[%clk 0:02:59]}  Nf6 {[%clk 0:02:55]} 8. d5 {[%clk 0:02:57]}  Na5 {[%clk 0:02:53]} 9. b3 {[%clk 0:02:57]}  e6 {[%clk 0:02:52]} 10. Rb1 {[%clk 0:02:47]}  exd5 {[%clk 0:02:50]} 11. cxd5 {[%clk 0:02:43]}  O-O {[%clk 0:02:49]} 12. O-O {[%clk 0:02:43]}  d6 {[%clk 0:02:49]} 13. e4 {[%clk 0:02:43]}  Re8 {[%clk 0:02:48]} 14. f4 {[%clk 0:02:38]}  a6 {[%clk 0:02:48]} 15. h3 {[%clk 0:02:27]}  b5 {[%clk 0:02:48]} 16. Qc2 {[%clk 0:02:26]}  b4 {[%clk 0:02:41]} 17. Nd1 {[%clk 0:02:23]}  Qe7 {[%clk 0:02:41]} 18. Nf2 {[%clk 0:02:21]}  Nxd5 {[%clk 0:02:35]} 19. exd5 {[%clk 0:02:07]}  Qxe2 {[%clk 0:02:32]} 20. Qxe2 {[%clk 0:01:58]}  Rxe2 {[%clk 0:02:32]} 21. a3 {[%clk 0:01:44]}  Bd4 {[%clk 0:02:21]} 22. axb4 {[%clk 0:01:41]}  cxb4 {[%clk 0:02:22]} 23. Bf3 {[%clk 0:01:37]}  Rc2 {[%clk 0:02:22]} 24. Be4 {[%clk 0:01:35]}  Ra2 {[%clk 0:02:18]} 25. Kg2 {[%clk 0:01:25]}  Re8 {[%clk 0:02:17]} 26. Bf3 {[%clk 0:01:25]}  Rc8 {[%clk 0:02:17]} 27. Be4 {[%clk 0:01:25]}  f5 {[%clk 0:02:17]} 28. Bd3 {[%clk 0:01:23]}  Bxd5+ {[%clk 0:02:17]} 29. Kg1 {[%clk 0:01:23]}  Nxb3 {[%clk 0:02:17]} 0-1


[Site "https://www.chess.com"]

[Event "Titled Tuesday Blitz March 01 Late 2022"]
[White "Landaw, Julian"]
[Black "Paravyan, David"]
[WhiteFideId "2023342"]
[BlackFideId "4194985"]
[WhiteElo "2312"]
[BlackElo "2569"]
[Result "1-0"]
[Round "03"]
[TimeControl "180+1"]
[Date "2022.03.01"]
[WhiteClock "0:00:56"]
[BlackClock "0:01:46"]

1. e4 {[%clk 0:03:00]}  e5 {[%clk 0:02:58]} 2. Nf3 {[%clk 0:03:00]}  Nc6 {[%clk 0:02:58]} 3. Bb5 {[%clk 0:03:01]}  f5 {[%clk 0:02:53]} 4. d4 {[%clk 0:03:00]}  fxe4 {[%clk 0:02:53]} 5. Bxc6 {[%clk 0:03:00]}  dxc6 {[%clk 0:02:49]} 6. Nxe5 {[%clk 0:03:01]}  Nf6 {[%clk 0:02:47]} 7. Bg5 {[%clk 0:02:59]}  Be7 {[%clk 0:02:43]} 8. Nc3 {[%clk 0:02:58]}  O-O {[%clk 0:02:42]} 9. Qd2 {[%clk 0:02:51]}  c5 {[%clk 0:02:37]} 10. O-O-O {[%clk 0:02:25]}  cxd4 {[%clk 0:02:35]} 11. Qxd4 {[%clk 0:02:25]}  Qxd4 {[%clk 0:02:34]} 12. Rxd4 {[%clk 0:02:26]}  Bc5 {[%clk 0:02:27]} 13. Rd2 {[%clk 0:02:16]}  Bf5 {[%clk 0:02:25]} 14. Re1 {[%clk 0:02:05]}  Rae8 {[%clk 0:02:23]} 15. Bxf6 {[%clk 0:01:24]}  Rxf6 {[%clk 0:02:22]} 16. Nd7 {[%clk 0:01:24]}  Bxd7 {[%clk 0:02:21]} 17. Rxd7 {[%clk 0:01:25]}  Bxf2 {[%clk 0:02:10]} 18. Rxe4 {[%clk 0:01:23]}  Rxe4 {[%clk 0:02:08]} 19. Nxe4 {[%clk 0:01:24]}  Rf7 {[%clk 0:02:07]} 20. Rd8+ {[%clk 0:01:19]}  Rf8 {[%clk 0:02:07]} 21. Rxf8+ {[%clk 0:01:20]}  Kxf8 {[%clk 0:02:07]} 22. Nxf2 {[%clk 0:01:21]}  Ke7 {[%clk 0:02:06]} 23. Kd2 {[%clk 0:01:21]}  Kd6 {[%clk 0:02:06]} 24. Ke3 {[%clk 0:01:21]}  Kd5 {[%clk 0:02:07]} 25. Nd3 {[%clk 0:01:19]}  a5 {[%clk 0:02:07]} 26. Kf4 {[%clk 0:01:16]}  Kd4 {[%clk 0:02:07]} 27. Ne5 {[%clk 0:01:14]}  a4 {[%clk 0:02:05]} 28. c3+ {[%clk 0:01:14]}  Kd5 {[%clk 0:02:05]} 29. Nf3 {[%clk 0:01:13]}  Kc4 {[%clk 0:01:55]} 30. Ke4 {[%clk 0:01:12]}  a3 {[%clk 0:01:55]} 31. Ne5+ {[%clk 0:01:12]}  Kb5 {[%clk 0:01:54]} 32. b3 {[%clk 0:01:12]}  c6 {[%clk 0:01:52]} 33. Nd7 {[%clk 0:01:11]}  h5 {[%clk 0:01:49]} 34. h4 {[%clk 0:01:11]}  c5 {[%clk 0:01:46]} 35. Kd5 {[%clk 0:01:11]}  b6 {[%clk 0:01:44]} 36. Nf8 {[%clk 0:01:01]}  c4 {[%clk 0:01:44]} 37. bxc4+ {[%clk 0:00:58]}  Ka4 {[%clk 0:01:44]} 38. Ne6 {[%clk 0:00:58]}  g6 {[%clk 0:01:44]} 39. Nf4 {[%clk 0:00:56]}  g5 {[%clk 0:01:44]} 40. hxg5 {[%clk 0:00:57]}  h4 {[%clk 0:01:45]} 41. g6 {[%clk 0:00:57]}  b5 {[%clk 0:01:46]} 42. cxb5 {[%clk 0:00:56]} 1-0


[Site "https://www.chess.com"]

[Event "Titled Tuesday Blitz March 01 Late 2022"]
[White "Leenhouts, Koen"]
[Black "Papasimakopoulos, Alexandros"]
[WhiteFideId "1008439"]
[BlackFideId "4244125"]
[WhiteElo "2409"]
[BlackElo "2340"]
[Result "0-1"]
[Round "03"]
[TimeControl "180+1"]
[Date "2022.03.02"]
[WhiteClock "0:01:09"]
[BlackClock "0:02:30"]

1. d4 {[%clk 0:03:00]}  e6 {[%clk 0:03:00]} 2. c4 {[%clk 0:03:00]}  Nf6 {[%clk 0:03:00]} 3. g3 {[%clk 0:02:58]}  Bb4+ {[%clk 0:03:00]} 4. Bd2 {[%clk 0:02:57]}  Be7 {[%clk 0:03:01]} 5. Bg2 {[%clk 0:02:56]}  d5 {[%clk 0:03:01]} 6. Nf3 {[%clk 0:02:55]}  O-O {[%clk 0:03:01]} 7. O-O {[%clk 0:02:54]}  c6 {[%clk 0:03:01]} 8. Qc2 {[%clk 0:02:51]}  Ne4 {[%clk 0:03:01]} 9. Nc3 {[%clk 0:02:47]}  f5 {[%clk 0:03:01]} 10. Rad1 {[%clk 0:02:24]}  Nd7 {[%clk 0:02:57]} 11. a3 {[%clk 0:02:03]}  g5 {[%clk 0:02:47]} 12. b4 {[%clk 0:01:59]}  g4 {[%clk 0:02:47]} 13. Ne5 {[%clk 0:01:56]}  Nxe5 {[%clk 0:02:47]} 14. dxe5 {[%clk 0:01:57]}  Nxd2 {[%clk 0:02:48]} 15. Rxd2 {[%clk 0:01:54]}  Bg5 {[%clk 0:02:49]} 16. e3 {[%clk 0:01:53]}  Bd7 {[%clk 0:02:49]} 17. cxd5 {[%clk 0:01:50]}  cxd5 {[%clk 0:02:50]} 18. Nxd5 {[%clk 0:01:48]}  exd5 {[%clk 0:02:43]} 19. Bxd5+ {[%clk 0:01:49]}  Kh8 {[%clk 0:02:43]} 20. Bxb7 {[%clk 0:01:38]}  Rb8 {[%clk 0:02:43]} 21. Bc6 {[%clk 0:01:37]}  Rc8 {[%clk 0:02:43]} 22. b5 {[%clk 0:01:32]}  Qe7 {[%clk 0:02:41]} 23. Qc3 {[%clk 0:01:18]}  Bxc6 {[%clk 0:02:40]} 24. bxc6 {[%clk 0:01:18]}  Rfe8 {[%clk 0:02:36]} 25. Rd5 {[%clk 0:01:13]}  Qe6 {[%clk 0:02:31]} 26. Rc1 {[%clk 0:01:09]}  Qxd5 {[%clk 0:02:30]} 0-1


[Site "https://www.chess.com"]

[Event "Titled Tuesday Blitz March 01 Late 2022"]
[White "Lopez Del Alamo, Antonio"]
[Black "Buscar, Michael"]
[WhiteFideId "2227339"]
[BlackFideId "2603616"]
[WhiteElo "2082"]
[BlackElo "2010"]
[Result "0-1"]
[Round "03"]
[TimeControl "180+1"]
[Date "2022.03.02"]
[WhiteClock "0:00:09"]
[BlackClock "0:00:05"]

1. e4 {[%clk 0:03:00]}  c5 {[%clk 0:02:58]} 2. Nf3 {[%clk 0:02:58]}  Nc6 {[%clk 0:02:57]} 3. Nc3 {[%clk 0:02:53]}  Nf6 {[%clk 0:02:57]} 4. e5 {[%clk 0:02:50]}  Ng4 {[%clk 0:02:56]} 5. Qe2 {[%clk 0:02:27]}  d6 {[%clk 0:02:40]} 6. exd6 {[%clk 0:02:11]}  Qxd6 {[%clk 0:02:38]} 7. h3 {[%clk 0:02:02]}  Nge5 {[%clk 0:02:32]} 8. Nxe5 {[%clk 0:01:52]}  Qxe5 {[%clk 0:02:31]} 9. d3 {[%clk 0:01:53]}  Bd7 {[%clk 0:02:19]} 10. Be3 {[%clk 0:01:47]}  Nd4 {[%clk 0:02:10]} 11. Bxd4 {[%clk 0:01:41]}  Qxd4 {[%clk 0:02:10]} 12. O-O-O {[%clk 0:01:37]}  g6 {[%clk 0:02:09]} 13. Re1 {[%clk 0:01:29]}  b5 {[%clk 0:01:57]} 14. Kb1 {[%clk 0:01:05]}  b4 {[%clk 0:01:52]} 15. Nd1 {[%clk 0:01:05]}  Be6 {[%clk 0:01:43]} 16. g4 {[%clk 0:01:01]}  Bg7 {[%clk 0:01:42]} 17. Bg2 {[%clk 0:01:01]}  Rc8 {[%clk 0:01:41]} 18. Qe3 {[%clk 0:00:56]}  O-O {[%clk 0:01:33]} 19. Qxd4 {[%clk 0:00:54]}  Bxd4 {[%clk 0:01:33]} 20. f4 {[%clk 0:00:50]}  c4 {[%clk 0:01:32]} 21. dxc4 {[%clk 0:00:46]}  Rxc4 {[%clk 0:01:31]} 22. Rhf1 {[%clk 0:00:43]}  Rc5 {[%clk 0:01:13]} 23. Ne3 {[%clk 0:00:33]}  Rfc8 {[%clk 0:01:05]} 24. f5 {[%clk 0:00:33]}  Bd7 {[%clk 0:00:52]} 25. Be4 {[%clk 0:00:31]}  Bb5 {[%clk 0:00:46]} 26. Rf3 {[%clk 0:00:29]}  a5 {[%clk 0:00:43]} 27. Nd5 {[%clk 0:00:27]}  Kf8 {[%clk 0:00:20]} 28. fxg6 {[%clk 0:00:27]}  hxg6 {[%clk 0:00:20]} 29. Bxg6 {[%clk 0:00:27]}  Rxd5 {[%clk 0:00:19]} 30. Bxf7 {[%clk 0:00:26]}  Rdc5 {[%clk 0:00:14]} 31. Be6+ {[%clk 0:00:25]}  Kg7 {[%clk 0:00:11]} 32. Bxc8 {[%clk 0:00:24]}  Rxc8 {[%clk 0:00:10]} 33. Rxe7+ {[%clk 0:00:24]}  Kg6 {[%clk 0:00:11]} 34. h4 {[%clk 0:00:24]}  Re8 {[%clk 0:00:09]} 35. Rxe8 {[%clk 0:00:23]}  Bxe8 {[%clk 0:00:09]} 36. Rd3 {[%clk 0:00:22]}  Be5 {[%clk 0:00:08]} 37. Re3 {[%clk 0:00:21]}  Kf6 {[%clk 0:00:08]} 38. g5+ {[%clk 0:00:21]}  Kf5 {[%clk 0:00:08]} 39. h5 {[%clk 0:00:20]}  Bxh5 {[%clk 0:00:08]} 40. g6 {[%clk 0:00:20]}  Bxg6 {[%clk 0:00:09]} 41. Re1 {[%clk 0:00:18]}  Ke6 {[%clk 0:00:09]} 42. Re3 {[%clk 0:00:12]}  Kd5 {[%clk 0:00:08]} 43. a3 {[%clk 0:00:10]}  bxa3 {[%clk 0:00:04]} 44. Rxa3 {[%clk 0:00:11]}  Bc7 {[%clk 0:00:04]} 45. Rd3+ {[%clk 0:00:10]}  Bxd3 {[%clk 0:00:04]} 46. cxd3 {[%clk 0:00:10]}  Kd4 {[%clk 0:00:04]} 47. Kc2 {[%clk 0:00:10]}  Bd6 {[%clk 0:00:05]} 48. Kd2 {[%clk 0:00:10]}  Bb4+ {[%clk 0:00:04]} 49. Kc2 {[%clk 0:00:11]}  Ke3 {[%clk 0:00:04]} 50. Kb3 {[%clk 0:00:06]}  Kxd3 {[%clk 0:00:04]} 51. Ka4 {[%clk 0:00:07]}  Kc2 {[%clk 0:00:05]} 52. b3 {[%clk 0:00:08]}  Kc3 {[%clk 0:00:05]} 53. Kb5 {[%clk 0:00:09]}  Kxb3 {[%clk 0:00:05]} 0-1


[Site "https://www.chess.com"]

[Event "Titled Tuesday Blitz March 01 Late 2022"]
[White "Maltsevskaya, Aleksandra"]
[Black "Yordanov, Nikolay Plamenov"]
[WhiteFideId "24174041"]
[BlackFideId "2907445"]
[WhiteElo "2283"]
[BlackElo "2248"]
[Result "1-0"]
[Round "03"]
[TimeControl "180+1"]
[Date "2022.03.02"]
[WhiteClock "0:00:05"]
[BlackClock "0:00:01"]

1. Nf3 {[%clk 0:03:00]}  Nf6 {[%clk 0:02:58]} 2. c4 {[%clk 0:03:01]}  g6 {[%clk 0:02:58]} 3. e3 {[%clk 0:03:02]}  Bg7 {[%clk 0:02:59]} 4. Nc3 {[%clk 0:03:03]}  O-O {[%clk 0:02:59]} 5. d4 {[%clk 0:03:04]}  d6 {[%clk 0:02:58]} 6. g3 {[%clk 0:03:00]}  b6 {[%clk 0:02:57]} 7. Bg2 {[%clk 0:03:00]}  Bb7 {[%clk 0:02:58]} 8. O-O {[%clk 0:03:01]}  Nbd7 {[%clk 0:02:57]} 9. a4 {[%clk 0:03:01]}  c5 {[%clk 0:02:56]} 10. a5 {[%clk 0:03:01]}  cxd4 {[%clk 0:02:41]} 11. exd4 {[%clk 0:02:55]}  Rb8 {[%clk 0:02:31]} 12. axb6 {[%clk 0:02:55]}  axb6 {[%clk 0:02:31]} 13. Re1 {[%clk 0:02:51]}  Re8 {[%clk 0:02:24]} 14. Ra7 {[%clk 0:02:49]}  Qc8 {[%clk 0:02:14]} 15. Qb3 {[%clk 0:02:47]}  Ra8 {[%clk 0:02:10]} 16. Rxa8 {[%clk 0:02:41]}  Bxa8 {[%clk 0:02:09]} 17. Bg5 {[%clk 0:02:34]}  h6 {[%clk 0:02:07]} 18. Bxf6 {[%clk 0:02:34]}  Bxf6 {[%clk 0:02:01]} 19. Nd5 {[%clk 0:02:28]}  Bxd5 {[%clk 0:01:47]} 20. cxd5 {[%clk 0:02:29]}  Qc7 {[%clk 0:01:37]} 21. Qb5 {[%clk 0:02:21]}  Rc8 {[%clk 0:01:36]} 22. h3 {[%clk 0:02:21]}  Kg7 {[%clk 0:01:26]} 23. h4 {[%clk 0:02:21]}  Nf8 {[%clk 0:01:21]} 24. Bh3 {[%clk 0:02:19]}  Ra8 {[%clk 0:01:20]} 25. Qc6 {[%clk 0:02:19]}  Qxc6 {[%clk 0:01:04]} 26. dxc6 {[%clk 0:02:20]}  e6 {[%clk 0:01:05]} 27. d5 {[%clk 0:02:16]}  Rc8 {[%clk 0:00:57]} 28. b4 {[%clk 0:02:14]}  b5 {[%clk 0:00:54]} 29. Nd2 {[%clk 0:02:02]}  Rc7 {[%clk 0:00:53]} 30. Ne4 {[%clk 0:02:00]}  Be5 {[%clk 0:00:45]} 31. dxe6 {[%clk 0:00:39]}  Nxe6 {[%clk 0:00:43]} 32. Bxe6 {[%clk 0:00:34]}  fxe6 {[%clk 0:00:44]} 33. Rc1 {[%clk 0:00:34]}  Kf7 {[%clk 0:00:34]} 34. f4 {[%clk 0:00:33]}  Bd4+ {[%clk 0:00:34]} 35. Kg2 {[%clk 0:00:33]}  Ke7 {[%clk 0:00:33]} 36. Kf3 {[%clk 0:00:31]}  d5 {[%clk 0:00:29]} 37. Nd2 {[%clk 0:00:29]}  Kd6 {[%clk 0:00:27]} 38. Nb3 {[%clk 0:00:30]}  Bb6 {[%clk 0:00:27]} 39. g4 {[%clk 0:00:25]}  Rxc6 {[%clk 0:00:24]} 40. Rxc6+ {[%clk 0:00:25]}  Kxc6 {[%clk 0:00:24]} 41. Nc1 {[%clk 0:00:11]}  Kd6 {[%clk 0:00:17]} 42. Ne2 {[%clk 0:00:07]}  e5 {[%clk 0:00:15]} 43. f5 {[%clk 0:00:03]}  gxf5 {[%clk 0:00:14]} 44. gxf5 {[%clk 0:00:04]}  e4+ {[%clk 0:00:15]} 45. Kf4 {[%clk 0:00:05]}  Bc7 {[%clk 0:00:11]} 46. Kg4 {[%clk 0:00:05]}  Ke5 {[%clk 0:00:10]} 47. Nf4 {[%clk 0:00:05]}  d4 {[%clk 0:00:09]} 48. Ng6+ {[%clk 0:00:05]}  Kf6 {[%clk 0:00:07]} 49. Nf8 {[%clk 0:00:06]}  Bd6 {[%clk 0:00:03]} 50. Nd7+ {[%clk 0:00:06]}  Kf7 {[%clk 0:00:03]} 51. Nb6 {[%clk 0:00:04]}  d3 {[%clk 0:00:01]} 52. Nd5 {[%clk 0:00:05]} 1-0


[Site "https://www.chess.com"]

[Event "Titled Tuesday Blitz March 01 Late 2022"]
[White "Mardov, Dimitar"]
[Black "Nilsen, Tobias Lang"]
[WhiteFideId "30919495"]
[BlackFideId "1521624"]
[WhiteElo "2185"]
[BlackElo "2013"]
[Result "1-0"]
[Round "03"]
[TimeControl "180+1"]
[Date "2022.03.02"]
[WhiteClock "0:00:16"]
[BlackClock "0:00:11"]

1. d4 {[%clk 0:03:00]}  f5 {[%clk 0:02:54]} 2. Nf3 {[%clk 0:03:00]}  Nf6 {[%clk 0:02:54]} 3. g3 {[%clk 0:02:58]}  g6 {[%clk 0:02:54]} 4. Bg2 {[%clk 0:02:58]}  Bg7 {[%clk 0:02:54]} 5. O-O {[%clk 0:02:58]}  O-O {[%clk 0:02:55]} 6. c4 {[%clk 0:02:59]}  d6 {[%clk 0:02:55]} 7. d5 {[%clk 0:02:59]}  e5 {[%clk 0:02:52]} 8. dxe6 {[%clk 0:02:59]}  Bxe6 {[%clk 0:02:53]} 9. Nd4 {[%clk 0:02:58]}  Bc8 {[%clk 0:02:52]} 10. Nc3 {[%clk 0:02:56]}  c6 {[%clk 0:02:47]} 11. Bf4 {[%clk 0:02:52]}  Qe7 {[%clk 0:02:47]} 12. Rc1 {[%clk 0:02:48]}  Nh5 {[%clk 0:02:45]} 13. Nxc6 {[%clk 0:02:31]}  Nxc6 {[%clk 0:02:38]} 14. Bxd6 {[%clk 0:02:26]}  Qf7 {[%clk 0:02:32]} 15. Bxf8 {[%clk 0:02:21]}  Bxf8 {[%clk 0:02:33]} 16. Nd5 {[%clk 0:02:15]}  Be6 {[%clk 0:02:28]} 17. a3 {[%clk 0:02:15]}  a5 {[%clk 0:02:23]} 18. Qb3 {[%clk 0:02:13]}  Bc5 {[%clk 0:02:17]} 19. e3 {[%clk 0:02:13]}  Rb8 {[%clk 0:01:59]} 20. Rfd1 {[%clk 0:02:10]}  Nf6 {[%clk 0:01:57]} 21. Qc3 {[%clk 0:02:06]}  Ne8 {[%clk 0:01:49]} 22. b4 {[%clk 0:02:05]}  axb4 {[%clk 0:01:48]} 23. axb4 {[%clk 0:02:04]}  Bf8 {[%clk 0:01:49]} 24. b5 {[%clk 0:01:54]}  Ne7 {[%clk 0:01:48]} 25. Nb6 {[%clk 0:01:50]}  Bg7 {[%clk 0:01:37]} 26. Qb4 {[%clk 0:01:49]}  Nf6 {[%clk 0:01:32]} 27. Qd6 {[%clk 0:01:47]}  Re8 {[%clk 0:01:29]} 28. Bxb7 {[%clk 0:01:42]}  f4 {[%clk 0:01:25]} 29. Qxf4 {[%clk 0:01:22]}  Nf5 {[%clk 0:01:24]} 30. Bc6 {[%clk 0:01:20]}  Rf8 {[%clk 0:01:22]} 31. Nd5 {[%clk 0:01:18]}  Nh5 {[%clk 0:01:22]} 32. Qf3 {[%clk 0:01:14]}  Kh8 {[%clk 0:01:05]} 33. b6 {[%clk 0:00:55]}  Bc8 {[%clk 0:00:58]} 34. c5 {[%clk 0:00:50]}  Qe6 {[%clk 0:00:55]} 35. Nc7 {[%clk 0:00:47]}  Qe7 {[%clk 0:00:50]} 36. Qe4 {[%clk 0:00:46]}  Qg5 {[%clk 0:00:24]} 37. Qg2 {[%clk 0:00:27]}  Nxe3 {[%clk 0:00:18]} 38. fxe3 {[%clk 0:00:27]}  Qxe3+ {[%clk 0:00:19]} 39. Kh1 {[%clk 0:00:28]}  Rf2 {[%clk 0:00:19]} 40. Nd5 {[%clk 0:00:10]}  Nxg3+ {[%clk 0:00:14]} 41. Qxg3 {[%clk 0:00:06]}  Qe4+ {[%clk 0:00:14]} 42. Kg1 {[%clk 0:00:06]}  Rf8 {[%clk 0:00:12]} 43. Re1 {[%clk 0:00:06]}  Bd4+ {[%clk 0:00:12]} 44. Re3 {[%clk 0:00:06]}  Bxe3+ {[%clk 0:00:12]} 45. Qxe3 {[%clk 0:00:07]}  Qg4+ {[%clk 0:00:12]} 46. Qg3 {[%clk 0:00:07]}  Qd4+ {[%clk 0:00:12]} 47. Ne3 {[%clk 0:00:07]}  Kg7 {[%clk 0:00:03]} 48. b7 {[%clk 0:00:06]}  Bxb7 {[%clk 0:00:03]} 49. Bxb7 {[%clk 0:00:07]}  Re8 {[%clk 0:00:02]} 50. Re1 {[%clk 0:00:06]}  Qxc5 {[%clk 0:00:02]} 51. Bg2 {[%clk 0:00:07]}  Re7 {[%clk 0:00:01]} 52. Qf2 {[%clk 0:00:07]}  Qe5 {[%clk 0:00:01]} 53. Nf5+ {[%clk 0:00:06]}  Qxf5 {[%clk 0:00:01]} 54. Rxe7+ {[%clk 0:00:05]}  Kf6 {[%clk 0:00:02]} 55. Qxf5+ {[%clk 0:00:05]}  gxf5 {[%clk 0:00:03]} 56. Rxh7 {[%clk 0:00:06]}  Kg5 {[%clk 0:00:04]} 57. Rh3 {[%clk 0:00:07]}  f4 {[%clk 0:00:05]} 58. Rf3 {[%clk 0:00:07]}  Kg4 {[%clk 0:00:06]} 59. Kf2 {[%clk 0:00:08]}  Kh4 {[%clk 0:00:06]} 60. Rxf4+ {[%clk 0:00:08]}  Kg5 {[%clk 0:00:07]} 61. Kg3 {[%clk 0:00:08]}  Kg6 {[%clk 0:00:07]} 62. h4 {[%clk 0:00:09]}  Kh6 {[%clk 0:00:08]} 63. Rg4 {[%clk 0:00:10]}  Kh7 {[%clk 0:00:08]} 64. Rg5 {[%clk 0:00:11]}  Kh6 {[%clk 0:00:08]} 65. Kg4 {[%clk 0:00:12]}  Kh7 {[%clk 0:00:09]} 66. Kf5 {[%clk 0:00:13]}  Kh6 {[%clk 0:00:10]} 67. Bf3 {[%clk 0:00:13]}  Kh7 {[%clk 0:00:10]} 68. Rg6 {[%clk 0:00:13]}  Kh8 {[%clk 0:00:11]} 69. Kf6 {[%clk 0:00:14]}  Kh7 {[%clk 0:00:11]} 70. Kf7 {[%clk 0:00:15]}  Kh8 {[%clk 0:00:11]} 71. Rh6# {[%clk 0:00:16]} 1-0


[Site "https://www.chess.com"]

[Event "Titled Tuesday Blitz March 01 Late 2022"]
[White "Martin Duque, Jesus"]
[Black "Perez Torres, Nabi Isaias"]
[WhiteFideId "2208954"]
[BlackFideId "5120373"]
[WhiteElo "2243"]
[BlackElo "1755"]
[Result "0-1"]
[Round "03"]
[TimeControl "180+1"]
[Date "2022.03.02"]
[WhiteClock "0:00:06"]
[BlackClock "0:01:21"]

1. d4 {[%clk 0:02:58]}  Nf6 {[%clk 0:02:59]} 2. c4 {[%clk 0:02:57]}  g6 {[%clk 0:02:59]} 3. h4 {[%clk 0:02:55]}  h5 {[%clk 0:02:45]} 4. Nc3 {[%clk 0:02:53]}  d5 {[%clk 0:02:43]} 5. cxd5 {[%clk 0:02:52]}  Nxd5 {[%clk 0:02:44]} 6. e4 {[%clk 0:02:53]}  Nxc3 {[%clk 0:02:44]} 7. bxc3 {[%clk 0:02:53]}  Bg7 {[%clk 0:02:45]} 8. Bc4 {[%clk 0:02:50]}  O-O {[%clk 0:02:44]} 9. Ne2 {[%clk 0:02:48]}  c5 {[%clk 0:02:44]} 10. Be3 {[%clk 0:02:47]}  Nc6 {[%clk 0:02:42]} 11. dxc5 {[%clk 0:02:40]}  Qc7 {[%clk 0:02:28]} 12. Nf4 {[%clk 0:02:32]}  Bxc3+ {[%clk 0:02:18]} 13. Kf1 {[%clk 0:02:32]}  e6 {[%clk 0:02:14]} 14. g4 {[%clk 0:02:26]}  Ne5 {[%clk 0:01:52]} 15. Bb3 {[%clk 0:02:23]}  Nxg4 {[%clk 0:01:50]} 16. Bd2 {[%clk 0:02:16]}  Rd8 {[%clk 0:01:46]} 17. Nd5 {[%clk 0:02:08]}  exd5 {[%clk 0:01:41]} 18. Bxc3 {[%clk 0:02:06]}  dxe4 {[%clk 0:01:36]} 19. Qc1 {[%clk 0:02:06]}  e3 {[%clk 0:01:33]} 20. Qc2 {[%clk 0:01:58]}  Bf5 {[%clk 0:01:31]} 21. Qb2 {[%clk 0:01:56]}  Qf4 {[%clk 0:01:27]} 22. Be5 {[%clk 0:00:06]}  Bd3+ {[%clk 0:01:21]} 0-1


[Site "https://www.chess.com"]

[Event "Titled Tuesday Blitz March 01 Late 2022"]
[White "Melkumyan, Hrant"]
[Black "Griffith, Kyron"]
[WhiteFideId "13302485"]
[BlackFideId "2046318"]
[WhiteElo "2604"]
[BlackElo "2232"]
[Result "1-0"]
[Round "03"]
[TimeControl "180+1"]
[Date "2022.03.02"]
[WhiteClock "0:01:42"]
[BlackClock "0:02:06"]

1. d4 {[%clk 0:03:00]}  d5 {[%clk 0:02:55]} 2. c4 {[%clk 0:03:00]}  e6 {[%clk 0:02:49]} 3. Nc3 {[%clk 0:02:58]}  Be7 {[%clk 0:02:49]} 4. Bf4 {[%clk 0:02:57]}  Nf6 {[%clk 0:02:48]} 5. e3 {[%clk 0:02:57]}  b6 {[%clk 0:02:48]} 6. Rc1 {[%clk 0:02:56]}  Bb7 {[%clk 0:02:40]} 7. cxd5 {[%clk 0:02:55]}  Nxd5 {[%clk 0:02:41]} 8. Bb5+ {[%clk 0:02:52]}  c6 {[%clk 0:02:39]} 9. Ba4 {[%clk 0:02:37]}  Nxf4 {[%clk 0:02:37]} 10. exf4 {[%clk 0:02:38]}  O-O {[%clk 0:02:36]} 11. Nf3 {[%clk 0:02:38]}  c5 {[%clk 0:02:30]} 12. O-O {[%clk 0:02:31]}  Nc6 {[%clk 0:02:27]} 13. Bxc6 {[%clk 0:02:13]}  Bxc6 {[%clk 0:02:25]} 14. Ne5 {[%clk 0:02:14]}  Bb7 {[%clk 0:02:20]} 15. dxc5 {[%clk 0:02:14]}  Bxc5 {[%clk 0:02:20]} 16. Nd7 {[%clk 0:02:08]}  Re8 {[%clk 0:02:18]} 17. Nxc5 {[%clk 0:02:08]}  bxc5 {[%clk 0:02:18]} 18. Qxd8 {[%clk 0:02:04]}  Rexd8 {[%clk 0:02:17]} 19. Na4 {[%clk 0:02:04]}  Rd2 {[%clk 0:02:13]} 20. Rfd1 {[%clk 0:01:46]}  Rad8 {[%clk 0:02:07]} 21. Rxd2 {[%clk 0:01:46]}  Rxd2 {[%clk 0:02:08]} 22. Nxc5 {[%clk 0:01:46]}  Bd5 {[%clk 0:02:06]} 23. Nb3 {[%clk 0:01:42]} 1-0


[Site "https://www.chess.com"]